bitfinex/quotes_BTCUSD_20220307
["timestamp","ask_amount","ask_price","bid_price","bid_amount"]
[1646612026074,0.0522,38381.0,38380.0,0.3]
[1646612026476,0.0522,38381.0,38379.0,0.20562625]
[1646612027176,0.0522,38381.0,38379.0,0.15562625]
[1646612027576,0.0522,38381.0,38380.0,0.3]
[1646612027777,0.006,38382.0,38380.0,0.3]
[1646612027977,0.006,38382.0,38381.0,0.02605]
[1646612028178,0.0522,38393.0,38387.0,0.07280496]
[1646612028377,0.0522,38393.0,38388.0,0.3]
[1646612028620,0.0522,38393.0,38389.0,0.17264449]
[1646612028822,0.0522,38393.0,38390.0,0.3]
[1646612029026,0.0522,38393.0,38390.0,0.35]
[1646612029323,0.0522,38393.0,38392.0,0.06982613]
[1646612029720,0.006,38399.0,38392.0,0.06982613]
[1646612029921,0.786288,38402.0,38392.0,0.06982613]
[1646612029922,0.78102,38402.0,38401.0,0.71139034]
[1646612030124,0.89576769,38402.0,38401.0,0.71139034]
[1646612030621,2.05621955,38402.0,38401.0,0.64025131]
[1646612030920,2.15621955,38402.0,38401.0,0.64025131]
[1646612031121,2.31294417,38402.0,38401.0,0.64025131]
[1646612031722,2.41294417,38402.0,38401.0,0.64025131]
[1646612032370,2.54329117,38402.0,38401.0,0.64025131]
[1646612033371,2.41294417,38402.0,38401.0,0.64025131]
[1646612035672,1.45961955,38402.0,38401.0,0.64048613]
[1646612035873,2.25621955,38402.0,38401.0,0.64048613]
[1646612036619,2.25121955,38402.0,38401.0,0.64048613]
[1646612038322,2.25121955,38402.0,38401.0,0.63548613]
[1646612038323,1.14296769,38402.0,38401.0,0.63548613]
[1646612039322,1.32500686,38402.0,38401.0,0.63548613]
[1646612039528,1.3240784,38402.0,38401.0,0.63548613]
[1646612039724,1.32345731,38402.0,38401.0,0.63548613]
[1646612040778,2.12005731,38402.0,38401.0,0.12956409]
[1646612040973,2.45024223,38402.0,38401.0,0.12956409]
[1646612041175,0.8617819,38398.0,38387.0,0.1651]
[1646612041372,0.7966,38396.0,38387.0,0.1651]
[1646612041571,0.07742467,38398.0,38387.0,0.1651]
[1646612041572,2.02419891,38395.0,38387.0,0.1651]
[1646612041772,0.1,38391.0,38385.0,0.5527]
[1646612041972,0.0522,38390.0,38381.0,0.1614]
[1646612042279,0.0522,38390.0,38376.0,0.539587]
[1646612042280,1.1488,38390.0,38376.0,0.539587]
[1646612042674,0.7966,38388.0,38375.0,0.1636]
[1646612042974,0.1,38383.0,38375.0,0.1636]
[1646612043177,0.28731203,38376.0,38373.0,0.1634]
[1646612043376,0.3522,38375.0,38373.0,0.002]
[1646612043627,0.1,38374.0,38373.0,0.002]
[1646612043824,0.1522,38374.0,38373.0,0.002]
[1646612044725,0.38731203,38376.0,38375.0,0.11528233]
[1646612045128,0.48731203,38376.0,38375.0,0.11528233]
[1646612045427,0.58731203,38376.0,38375.0,0.11528233]
[1646612045627,2.21151094,38376.0,38375.0,0.11528233]
[1646612046327,2.26151094,38376.0,38375.0,0.11528233]
[1646612046525,2.46564786,38376.0,38375.0,0.11528233]
[1646612047371,2.46564786,38376.0,38375.0,0.11028233]
[1646612047372,2.46064786,38376.0,38375.0,0.11028233]
[1646612047771,2.57998243,38376.0,38375.0,0.11028233]
[1646612047972,2.57998094,38376.0,38375.0,0.11028233]
[1646612048172,1.57924402,38376.0,38375.0,0.11028233]
[1646612048373,1.24693199,38376.0,38375.0,0.11028233]
[1646612048577,1.04693199,38376.0,38375.0,0.11028233]
[1646612048974,1.14693199,38376.0,38375.0,0.11028233]
[1646612049373,1.36740106,38376.0,38375.0,0.11028233]
[1646612049576,1.36740106,38376.0,38373.0,0.002]
[1646612049577,0.7966,38374.0,38373.0,0.002]
[1646612049778,0.9488,38374.0,38373.0,0.002]
[1646612049977,1.1488,38374.0,38373.0,0.002]
[1646612050177,2.02419891,38374.0,38373.0,0.002]
[1646612050575,1.92419891,38374.0,38373.0,0.002]
[1646612051225,1.92963553,38374.0,38373.0,0.002]
[1646612052226,2.06963553,38374.0,38373.0,0.002]
[1646612052427,2.04353348,38374.0,38373.0,0.002]
[1646612052828,2.14353348,38374.0,38373.0,0.002]
[1646612055693,2.27398851,38374.0,38373.0,0.00045103]
[1646612056193,0.7966,38372.0,38368.0,0.001]
[1646612056396,0.91049795,38370.0,38368.0,0.001]
[1646612056594,2.12307136,38370.0,38368.0,0.001]
[1646612056796,2.22307136,38370.0,38368.0,0.001]
[1646612057795,2.22307136,38370.0,38362.0,0.304]
[1646612058000,0.1,38369.0,38362.0,0.304]
[1646612058195,0.82759891,38368.0,38364.0,0.2069205]
[1646612058395,0.82759891,38368.0,38362.0,0.304]
[1646612058627,0.1,38367.0,38362.0,0.304]
[1646612058827,0.1522,38367.0,38362.0,0.304]
[1646612059229,0.1522,38367.0,38362.0,0.004]
[1646612059230,0.9488,38367.0,38362.0,0.004]
[1646612059430,0.77539891,38366.0,38362.0,0.004]
[1646612059630,1.1488,38365.0,38362.0,0.004]
[1646612059833,1.1488,38365.0,38362.0,0.003]
[1646612059834,0.8966,38363.0,38362.0,0.003]
[1646612060036,2.26419891,38363.0,38362.0,0.003]
[1646612060336,1.7966,38362.0,38358.0,0.001]
[1646612060537,0.9366,38359.0,38358.0,0.001]
[1646612060729,1.15707,38359.0,38358.0,0.001]
[1646612060934,1.35707,38359.0,38358.0,0.001]
[1646612061130,2.10638173,38359.0,38358.0,0.001]
[1646612061830,1.30978173,38359.0,38358.0,0.001]
[1646612062031,1.20978173,38359.0,38358.0,0.001]
[1646612062798,2.00638173,38359.0,38358.0,0.001]
[1646612063202,2.11181835,38359.0,38358.0,0.001]
[1646612063401,2.11181835,38359.0,38353.0,0.002]
[1646612063600,0.7966,38357.0,38353.0,0.002]
[1646612063800,1.06184769,38358.0,38353.0,0.002]
[1646612063801,0.81067452,38355.0,38353.0,0.002]
[1646612063998,0.7966,38352.0,38350.0,0.003]
[1646612064206,2.16570435,38352.0,38350.0,0.003]
[1646612064599,1.7466,38351.0,38350.0,0.003]
[1646612064799,1.80334742,38351.0,38350.0,0.003]
[1646612065000,2.10334742,38351.0,38350.0,0.003]
[1646612065601,2.21731825,38351.0,38350.0,0.003]
[1646612066226,2.12275487,38351.0,38350.0,0.003]
[1646612066427,2.04350487,38351.0,38350.0,0.003]
[1646612066627,1.24690636,38351.0,38350.0,0.003]
[1646612066826,1.14690487,38351.0,38350.0,0.003]
[1646612069327,1.04690487,38351.0,38350.0,0.003]
[1646612069727,1.14690487,38351.0,38350.0,0.003]
[1646612069981,0.88073404,38351.0,38350.0,0.003]
[1646612070176,0.78073404,38351.0,38350.0,0.003]
[1646612070377,0.38942204,38351.0,38350.0,0.003]
[1646612070980,0.38942204,38351.0,38350.0,0.16924046]
[1646612071279,0.38942204,38351.0,38350.0,0.46949796]
[1646612071476,0.38935004,38351.0,38350.0,0.46949796]
[1646612071875,0.003,38355.0,38351.0,1.0]
[1646612072078,0.003,38355.0,38354.0,0.18250449]
[1646612072276,0.1,38360.0,38355.0,1.0]
[1646612072476,0.0522,38365.0,38359.0,0.1791023]
[1646612072676,0.02610489,38361.0,38359.0,0.1791023]
[1646612072877,0.02610489,38360.0,38355.0,0.3]
[1646612073076,0.052128,38365.0,38355.0,0.3]
[1646612073376,0.0108846,38374.0,38361.0,0.21049578]
[1646612073377,0.006,38362.0,38361.0,0.21049578]
[1646612073630,0.006,38362.0,38361.0,0.51049578]
[1646612074024,0.006,38362.0,38361.0,0.57188301]
[1646612074226,0.006,38362.0,38361.0,1.19847829]
[1646612074434,0.605154,38378.0,38363.0,0.02605]
[1646612074435,0.1,38375.0,38363.0,0.02605]
[1646612074627,0.1,38380.0,38367.0,0.15]
[1646612074826,0.505153,38381.0,38370.0,0.17605]
[1646612074827,0.5,38381.0,38370.0,0.17605]
[1646612075026,0.5,38381.0,38372.0,0.02605]
[1646612075226,0.1,38381.0,38372.0,0.02605]
[1646612075427,0.102,38381.0,38376.0,0.27285664]
[1646612076230,0.102,38381.0,38373.0,0.3]
[1646612076428,0.102,38381.0,38373.0,0.05]
[1646612076628,0.102,38381.0,38371.0,0.130373]
[1646612076629,0.1,38381.0,38371.0,0.130373]
[1646612077230,0.16350153,38376.0,38371.0,0.130373]
[1646612077890,0.2,38381.0,38371.0,0.130373]
[1646612078190,0.1,38381.0,38371.0,0.130373]
[1646612078591,0.1,38381.0,38375.0,0.18599663]
[1646612079093,0.1,38381.0,38376.0,0.065185]
[1646612082221,0.1,38379.0,38373.0,0.00157948]
[1646612082420,0.19833281,38377.0,38373.0,0.00157948]
[1646612082822,0.1,38376.0,38373.0,0.00157948]
[1646612083222,0.1,38374.0,38373.0,0.00157948]
[1646612083425,0.88179,38374.0,38373.0,0.00157948]
[1646612084223,0.98179,38374.0,38373.0,0.00157948]
[1646612085586,0.98179,38374.0,38373.0,0.00113648]
[1646612086587,0.98179,38374.0,38371.0,0.06655879]
[1646612086788,0.1,38373.0,38371.0,0.06655879]
[1646612086986,0.1,38373.0,38372.0,0.17295613]
[1646612087187,0.78179,38374.0,38372.0,0.17295613]
[1646612087790,0.78179,38374.0,38372.0,0.22295613]
[1646612088644,0.78179,38374.0,38372.0,0.05]
[1646612089047,0.78179,38374.0,38371.0,0.00135879]
[1646612089450,0.78179,38374.0,38372.0,0.065192]
[1646612091247,0.78179,38374.0,38373.0,0.00021144]
[1646612094379,0.78179,38374.0,38373.0,0.30021144]
[1646612094781,0.78179,38374.0,38373.0,0.00021144]
[1646612095377,0.78179,38374.0,38373.0,0.00013944]
[1646612095878,0.9599902,38374.0,38372.0,0.00136682]
[1646612096325,0.78179,38374.0,38372.0,0.15136682]
[1646612096526,0.78179,38374.0,38373.0,0.714227]
[1646612096729,0.21433984,38374.0,38373.0,0.76538121]
[1646612097325,0.21433984,38374.0,38373.0,0.65820817]
[1646612097626,0.003,38380.0,38379.0,0.1889262]
[1646612099725,0.004,38383.0,38379.0,0.1889262]
[1646612099980,0.004,38383.0,38379.0,0.4889262]
[1646612100375,0.004,38383.0,38379.0,0.6389262]
[1646612100579,0.8952,38386.0,38379.0,0.8192732]
[1646612101176,0.0011,38391.0,38380.0,0.02605]
[1646612101381,0.0031,38391.0,38389.0,0.06708101]
[1646612101577,0.0031,38391.0,38389.0,0.125786]
[1646612101980,0.0031,38391.0,38389.0,0.06063]
[1646612102579,0.0011,38391.0,38389.0,0.06063]
[1646612102778,0.00058,38391.0,38388.0,0.4035454]
[1646612103379,0.00058,38391.0,38388.0,0.2732344]
[1646612103628,0.00058,38391.0,38388.0,0.21251303]
[1646612104631,0.00058,38391.0,38382.0,0.3]
[1646612104830,0.00058,38391.0,38380.0,0.164]
[1646612105030,0.18796382,38388.0,38380.0,0.164]
[1646612105229,0.18796382,38388.0,38378.0,0.45]
[1646612105431,0.18796382,38388.0,38378.0,0.15]
[1646612105628,0.28796382,38388.0,38379.0,0.3]
[1646612106428,0.28796382,38388.0,38379.0,0.36137722]
[1646612106627,0.18796382,38388.0,38379.0,0.36137722]
[1646612107876,0.18796382,38388.0,38379.0,0.3]
[1646612108076,0.18796382,38388.0,38378.0,0.33553179]
[1646612108476,0.18796382,38388.0,38378.0,0.002]
[1646612108681,0.3,38387.0,38373.0,0.306545]
[1646612108879,1.1952,38387.0,38373.0,0.306545]
[1646612109178,0.37974346,38380.0,38373.0,0.306545]
[1646612109380,0.37974346,38380.0,38370.0,0.1709]
[1646612109381,0.3,38379.0,38370.0,0.1709]
[1646612109579,0.17299336,38375.0,38370.0,0.1709]
[1646612109782,0.17299336,38375.0,38369.0,0.21815544]
[1646612109978,0.22519336,38375.0,38369.0,0.21815544]
[1646612110180,0.22519336,38375.0,38369.0,0.004]
[1646612110181,0.3,38374.0,38369.0,0.004]
[1646612110381,0.0522,38373.0,38369.0,0.004]
[1646612110581,0.3,38372.0,38361.0,0.1691]
[1646612110781,0.9488,38371.0,38358.0,0.1611]
[1646612110987,0.9488,38371.0,38353.0,0.495]
[1646612110988,1.10825112,38370.0,38353.0,0.495]
[1646612111245,0.1,38362.0,38359.0,0.00014476]
[1646612111445,0.0522,38361.0,38359.0,0.00014476]
[1646612111644,1.11349216,38360.0,38359.0,0.00014476]
[1646612111848,1.30543984,38360.0,38359.0,0.00014476]
[1646612112044,0.60883984,38360.0,38352.0,0.010423]
[1646612112244,0.1,38359.0,38352.0,0.010423]
[1646612112448,0.1,38353.0,38352.0,0.01055331]
[1646612112645,0.0522,38355.0,38352.0,0.00013031]
[1646612113248,0.0522,38355.0,38351.0,0.3]
[1646612113945,0.003,38356.0,38351.0,0.3]
[1646612114145,0.003,38356.0,38351.0,0.365215]
[1646612114350,0.18987173,38354.0,38351.0,0.365215]
[1646612114546,0.37974346,38354.0,38351.0,0.365215]
[1646612114747,0.37974346,38354.0,38353.0,0.26609838]
[1646612115182,0.37974346,38354.0,38353.0,0.26602638]
[1646612117382,0.37974346,38354.0,38350.0,0.34736842]
[1646612117781,0.37974346,38354.0,38350.0,0.21694742]
[1646612118482,0.37974346,38354.0,38350.0,0.43746917]
[1646612119433,0.37974346,38354.0,38351.0,0.3]
[1646612119434,0.18987173,38354.0,38351.0,0.3]
[1646612119730,0.18987173,38352.0,38351.0,0.3]
[1646612119931,0.37974346,38352.0,38351.0,0.3]
[1646612120534,0.37974346,38352.0,38351.0,0.50617437]
[1646612120732,0.37974346,38352.0,38351.0,0.3]
[1646612121334,0.37974346,38352.0,38350.0,0.50268617]
[1646612121534,0.37974346,38352.0,38350.0,0.50568617]
[1646612122135,0.37974346,38352.0,38350.0,0.30373875]
[1646612122583,0.37974346,38352.0,38350.0,0.003]
[1646612122781,0.37974346,38352.0,38349.0,0.004]
[1646612123283,0.37974346,38352.0,38349.0,0.014425]
[1646612123284,0.188399,38351.0,38349.0,0.014425]
[1646612123780,0.37974346,38352.0,38349.0,0.004]
[1646612124682,0.18987173,38352.0,38349.0,0.004]
[1646612124885,0.16678574,38354.0,38349.0,0.004]
[1646612125083,0.18987173,38350.0,38349.0,0.004]
[1646612125785,0.18987173,38350.0,38349.0,0.26099245]
[1646612126232,0.18987173,38350.0,38349.0,0.56099245]
[1646612126733,0.005153,38362.0,38356.0,0.18706662]
[1646612127330,0.005153,38363.0,38356.0,0.18706662]
[1646612127629,0.17627344,38359.0,38356.0,0.18706662]
[1646612128430,0.011153,38363.0,38356.0,0.18706662]
[1646612129231,0.006,38363.0,38356.0,0.18706662]
[1646612129432,0.17609341,38361.0,38356.0,0.18706662]
[1646612130076,0.157354,38365.0,38356.0,0.18706662]
[1646612130678,0.057354,38365.0,38356.0,0.18706662]
[1646612130877,0.0522,38365.0,38356.0,0.18706662]
[1646612131077,0.16831335,38363.0,38358.0,0.00019649]
[1646612131279,0.16831335,38363.0,38358.0,0.0019579]
[1646612132685,0.3,38362.0,38358.0,0.0019579]
[1646612133185,0.6,38362.0,38358.0,0.0019579]
[1646612133641,0.1,38361.0,38358.0,0.0019579]
[1646612134741,0.78207,38360.0,38358.0,0.0019579]
[1646612135542,0.78207,38360.0,38358.0,0.00176141]
[1646612135949,0.78207,38360.0,38357.0,0.00195391]
[1646612137582,0.78183848,38360.0,38357.0,0.00195391]
[1646612138986,0.78183848,38360.0,38357.0,0.30195391]
[1646612139184,0.78183848,38360.0,38358.0,0.065208]
[1646612139384,0.78183848,38360.0,38357.0,0.00195391]
[1646612140986,0.78183848,38360.0,38359.0,0.00175953]
[1646612141234,0.78183848,38360.0,38359.0,0.00221583]
[1646612145379,0.39058948,38360.0,38359.0,0.00221583]
[1646612149638,0.39058948,38360.0,38359.0,0.00198765]
[1646612149639,0.6903613,38360.0,38359.0,0.00198765]
[1646612149834,0.7425613,38360.0,38359.0,0.00198765]
[1646612150334,1.7391613,38360.0,38359.0,0.00198765]
[1646612151536,1.8044003,38360.0,38359.0,0.00198765]
[1646612151734,1.7391613,38360.0,38359.0,0.00198765]
[1646612151935,0.6425613,38360.0,38356.0,0.17905427]
[1646612152234,0.1,38358.0,38356.0,0.17905427]
[1646612152886,0.8966,38358.0,38356.0,0.17905427]
[1646612153090,0.9488,38358.0,38356.0,0.17905427]
[1646612153690,0.1,38357.0,38356.0,0.17905427]
[1646612153892,0.2522,38357.0,38356.0,0.17905427]
[1646612154094,0.2522,38357.0,38352.0,0.001]
[1646612154095,1.7966,38356.0,38352.0,0.001]
[1646612154393,0.30533283,38353.0,38352.0,0.001]
[1646612154587,0.52965283,38353.0,38352.0,0.001]
[1646612154792,0.52965283,38353.0,38349.0,0.00113726]
[1646612154793,0.7966,38352.0,38349.0,0.00113726]
[1646612154989,0.7966,38352.0,38341.0,0.001]
[1646612154990,0.7966,38346.0,38341.0,0.001]
[1646612155190,1.3391613,38345.0,38341.0,0.001]
[1646612155388,1.5999013,38345.0,38341.0,0.001]
[1646612155988,1.78670934,38345.0,38341.0,0.001]
[1646612160382,1.90163386,38345.0,38341.0,0.001]
[1646612161383,1.90162935,38345.0,38341.0,0.001]
[1646612161589,1.90162935,38345.0,38344.0,0.00340779]
[1646612163845,1.10502935,38345.0,38344.0,0.00340779]
[1646612164048,1.84088785,38345.0,38344.0,0.00340779]
[1646612166547,1.86489809,38345.0,38344.0,0.00340779]
[1646612167248,1.86489809,38345.0,38344.0,0.66110324]
[1646612167485,0.88149005,38345.0,38344.0,0.65610324]
[1646612167696,0.56657154,38345.0,38344.0,0.65610324]
[1646612169688,1.46317154,38345.0,38344.0,0.65610324]
[1646612170488,1.61317154,38345.0,38344.0,0.43590946]
[1646612170886,2.10338919,38345.0,38344.0,0.43590946]
[1646612171132,1.94861317,38345.0,38344.0,0.43590946]
[1646612171536,1.94861317,38345.0,38344.0,0.43610574]
[1646612171936,0.84658896,38344.0,38340.0,0.002]
[1646612172133,0.94172239,38342.0,38338.0,0.002]
[1646612172337,1.6391613,38341.0,38338.0,0.002]
[1646612172735,0.9966,38339.0,38338.0,0.002]
[1646612172935,1.0,38338.0,38329.0,0.01402]
[1646612173137,1.0,38338.0,38319.0,0.002]
[1646612173138,0.11496055,38334.0,38319.0,0.002]
[1646612173338,1.0,38335.0,38319.0,0.002]
[1646612173339,0.6523,38330.0,38319.0,0.002]
[1646612173540,0.927207,38327.0,38319.0,0.002]
[1646612173738,0.6523,38322.0,38319.0,0.002]
[1646612173938,0.1,38320.0,38319.0,0.002]
[1646612174135,1.9914613,38320.0,38319.0,0.002]
[1646612174338,2.1914613,38320.0,38319.0,0.002]
[1646612174988,1.3948613,38320.0,38319.0,0.002]
[1646612175185,2.1914613,38320.0,38319.0,0.002]
[1646612175486,2.30645941,38320.0,38319.0,0.002]
[1646612175684,1.50985941,38320.0,38319.0,0.002]
[1646612175986,1.53386965,38320.0,38319.0,0.002]
[1646612177087,1.53386965,38320.0,38315.0,0.003]
[1646612177088,1.0,38316.0,38315.0,0.003]
[1646612177286,1.0,38316.0,38312.0,0.001]
[1646612177287,1.5966,38314.0,38312.0,0.001]
[1646612177490,1.8011,38313.0,38312.0,0.00111129]
[1646612177686,1.8914613,38313.0,38312.0,0.00111129]
[1646612177900,2.1914613,38313.0,38312.0,0.00111129]
[1646612178290,2.1914613,38313.0,38312.0,0.001]
[1646612178291,2.6914613,38313.0,38312.0,0.001]
[1646612178487,4.53621632,38313.0,38312.0,0.001]
[1646612178752,0.41437154,38313.0,38312.0,0.001]
[1646612178941,0.1,38316.0,38315.0,0.05400176]
[1646612179158,0.1,38322.0,38315.0,0.35400176]
[1646612179344,0.1,38322.0,38316.0,0.15]
[1646612179543,0.1,38322.0,38317.0,0.3]
[1646612179544,0.003,38322.0,38317.0,0.3]
[1646612180943,0.1,38327.0,38317.0,0.3]
[1646612181447,0.17049455,38325.0,38317.0,0.3]
[1646612181643,0.0522,38324.0,38317.0,0.3]
[1646612181843,0.00012415,38320.0,38319.0,0.00021073]
[1646612182246,0.78301415,38320.0,38319.0,0.00021073]
[1646612182502,2.07961415,38320.0,38319.0,0.00021073]
[1646612182708,2.07961415,38320.0,38317.0,0.00016228]
[1646612182709,0.7966,38318.0,38317.0,0.00016228]
[1646612182905,0.7966,38318.0,38308.0,0.002]
[1646612182906,1.3466,38316.0,38304.0,0.002]
[1646612183101,0.15906495,38308.0,38304.0,0.002]
[1646612183305,0.29792495,38308.0,38304.0,0.002]
[1646612183498,1.81835,38308.0,38304.0,0.002]
[1646612183700,1.92411051,38308.0,38304.0,0.002]
[1646612184004,1.22751051,38308.0,38304.0,0.002]
[1646612184200,1.1087,38308.0,38304.0,0.002]
[1646612184398,1.0087,38308.0,38304.0,0.002]
[1646612184600,0.9087,38308.0,38304.0,0.00212987]
[1646612184799,0.83509,38308.0,38304.0,0.00212987]
[1646612185599,0.83509,38308.0,38304.0,0.002]
[1646612185999,0.83509,38308.0,38304.0,0.00212987]
[1646612186435,0.78289,38308.0,38304.0,0.00212987]
[1646612186836,0.78289,38308.0,38304.0,0.002]
[1646612187237,0.78289,38308.0,38307.0,0.151]
[1646612187436,0.78289,38308.0,38307.0,0.146]
[1646612187837,0.78289,38308.0,38307.0,0.446]
[1646612188639,0.78289,38308.0,38307.0,0.860227]
[1646612188839,0.78289,38308.0,38307.0,0.47205]
[1646612189241,0.78289,38308.0,38307.0,0.910227]
[1646612189441,0.0724643,38308.0,38307.0,0.52205]
[1646612191991,0.07257553,38308.0,38307.0,0.52228981]
[1646612192590,0.07257553,38308.0,38307.0,0.22228981]
[1646612194331,0.07215553,38308.0,38307.0,0.52228981]
[1646612196033,0.01305,38322.0,38312.0,0.02605]
[1646612196234,0.01305,38322.0,38316.0,0.146]
[1646612196435,0.3,38322.0,38307.0,0.00023981]
[1646612196635,0.00576051,38321.0,38307.0,0.00023981]
[1646612196843,0.7966,38318.0,38307.0,0.00023981]
[1646612197032,0.1,38319.0,38307.0,0.00023981]
[1646612197033,0.1,38314.0,38307.0,0.00023981]
[1646612197235,0.1,38313.0,38307.0,0.00023981]
[1646612197518,0.17776639,38310.0,38307.0,0.00023981]
[1646612198311,0.17776639,38310.0,38303.0,0.002]
[1646612198312,0.22996639,38310.0,38298.0,0.146]
[1646612198513,0.783,38309.0,38298.0,0.146]
[1646612198713,0.01305,38308.0,38299.0,0.02605]
[1646612198910,0.01305,38308.0,38301.0,0.23241334]
[1646612199309,0.783,38309.0,38301.0,0.23241334]
[1646612199709,0.788,38309.0,38301.0,0.23241334]
[1646612200612,0.788,38309.0,38305.0,0.21060119]
[1646612201017,0.783,38309.0,38305.0,0.21060119]
[1646612201245,0.783,38309.0,38308.0,0.388177]
[1646612201843,0.783,38309.0,38307.0,0.41950242]
[1646612202143,0.783,38309.0,38308.0,0.0002008]
[1646612204891,1.083,38309.0,38308.0,0.0002008]
[1646612205094,1.14825,38309.0,38308.0,0.0002008]
[1646612205892,0.8352,38309.0,38308.0,0.0002008]
[1646612206795,0.8352,38309.0,38305.0,0.0001103]
[1646612206997,0.2019228,38308.0,38305.0,0.0001103]
[1646612207197,0.783,38307.0,38300.0,0.0001935]
[1646612207596,0.783,38307.0,38303.0,9.928e-05]
[1646612208397,0.783,38307.0,38300.0,0.0001935]
[1646612208649,0.783,38307.0,38303.0,0.065297]
[1646612208844,0.21454182,38307.0,38303.0,0.065297]
[1646612209045,0.21454182,38307.0,38304.0,0.21611281]
[1646612209445,0.21454182,38307.0,38306.0,0.02605]
[1646612210646,0.21454182,38307.0,38306.0,0.414227]
[1646612211648,0.21454182,38307.0,38306.0,0.08039225]
[1646612211847,0.21454182,38307.0,38306.0,0.46856925]
[1646612214285,0.21454182,38307.0,38306.0,0.02605]
[1646612214484,0.21454182,38307.0,38306.0,0.146]
[1646612214886,0.21454182,38307.0,38304.0,0.21611281]
[1646612215086,0.21454182,38307.0,38303.0,0.14611031]
[1646612215485,0.40326802,38307.0,38303.0,0.14611031]
[1646612215684,0.40326802,38307.0,38303.0,0.146]
[1646612215885,0.21454182,38307.0,38306.0,0.21640981]
[1646612216337,0.21454182,38307.0,38306.0,0.21677333]
[1646612216937,0.21454182,38307.0,38306.0,0.00036352]
[1646612218137,0.21446982,38307.0,38306.0,0.00036352]
[1646612221788,0.21446982,38307.0,38306.0,0.00018302]
[1646612222592,0.51446982,38307.0,38306.0,0.00018302]
[1646612222792,0.21446982,38307.0,38306.0,0.00018302]
[1646612222989,0.26446982,38307.0,38306.0,0.00018302]
[1646612223393,0.56846982,38307.0,38306.0,0.00018302]
[1646612223635,0.26846982,38307.0,38306.0,0.00018302]
[1646612224340,0.56846982,38307.0,38306.0,0.00018302]
[1646612224635,0.63371982,38307.0,38306.0,0.00018302]
[1646612224836,0.73371982,38307.0,38306.0,0.00018302]
[1646612225138,0.72066982,38307.0,38306.0,0.00018302]
[1646612225337,0.53371982,38307.0,38306.0,0.00018302]
[1646612225737,0.43371982,38307.0,38306.0,0.00018302]
[1646612225938,0.42066982,38307.0,38306.0,0.00018302]
[1646612226237,0.48598151,38307.0,38306.0,0.00018302]
[1646612226439,0.48598151,38307.0,38303.0,0.00584628]
[1646612226440,0.38198151,38307.0,38303.0,0.00584628]
[1646612226639,0.21446982,38307.0,38303.0,0.00584628]
[1646612226942,0.21446982,38307.0,38305.0,0.219895]
[1646612227588,0.21446982,38307.0,38306.0,0.17206437]
[1646612228385,0.21446982,38307.0,38306.0,0.47206437]
[1646612230085,0.21446982,38307.0,38306.0,0.17206437]
[1646612231543,0.21446982,38307.0,38306.0,0.47206437]
[1646612231740,0.21446982,38307.0,38306.0,0.17206437]
[1646612233343,0.21446982,38307.0,38305.0,0.00021231]
[1646612236583,0.21446982,38307.0,38306.0,0.00016753]
[1646612238933,0.004,38311.0,38308.0,0.35409864]
[1646612241136,0.004,38311.0,38306.0,0.0001041]
[1646612241137,1.0,38308.0,38306.0,0.0001041]
[1646612241338,0.23466244,38307.0,38306.0,0.0001041]
[1646612241541,0.85766261,38307.0,38306.0,0.0001041]
[1646612241737,0.05,38305.0,38302.0,6.246e-05]
[1646612241940,0.004,38303.0,38302.0,6.246e-05]
[1646612242138,0.19232748,38296.0,38295.0,0.01305]
[1646612242403,0.26166248,38296.0,38295.0,0.01305]
[1646612242601,0.31166248,38296.0,38295.0,0.01305]
[1646612242800,0.119335,38296.0,38295.0,0.01305]
[1646612243000,0.119262,38296.0,38295.0,0.01305]
[1646612243201,0.069335,38296.0,38295.0,0.01305]
[1646612244203,0.004,38296.0,38295.0,0.01305]
[1646612245009,0.004,38296.0,38288.0,0.58590673]
[1646612245202,0.004,38293.0,38287.0,0.3]
[1646612245404,0.27420424,38298.0,38286.0,0.010441]
[1646612245405,0.004,38291.0,38286.0,0.010441]
[1646612246134,0.004,38291.0,38286.0,0.01053834]
[1646612246735,0.004,38287.0,38286.0,9.734e-05]
[1646612246939,0.004,38287.0,38280.0,0.001]
[1646612247138,0.06534927,38289.0,38280.0,0.001]
[1646612247139,0.004,38282.0,38280.0,0.001]
[1646612247438,0.25708026,38282.0,38280.0,0.001]
[1646612247639,0.07618,38282.0,38280.0,0.001]
[1646612247840,0.07618,38282.0,38281.0,0.27885744]
[1646612248036,0.003,38283.0,38281.0,0.66703444]
[1646612248240,0.003,38283.0,38282.0,0.3]
[1646612248636,0.003,38283.0,38281.0,0.27885744]
[1646612248838,0.003,38283.0,38282.0,0.19903628]
[1646612249439,0.003,38283.0,38280.0,0.001]
[1646612249895,0.001,38284.0,38280.0,0.001]
[1646612250090,0.005,38284.0,38275.0,0.3]
[1646612250293,0.21487838,38284.0,38278.0,0.21020359]
[1646612250690,0.005,38284.0,38278.0,0.21020359]
[1646612250890,0.001,38284.0,38279.0,0.3]
[1646612251089,0.78322,38290.0,38279.0,0.3]
[1646612251290,0.004,38286.0,38279.0,0.3]
[1646612251490,0.78322,38290.0,38279.0,0.3]
[1646612251690,0.004,38288.0,38283.0,0.20736142]
[1646612252794,9.19e-05,38282.0,38281.0,0.00020752]
[1646612254734,9.19e-05,38282.0,38281.0,0.00013552]
[1646612255937,9.19e-05,38282.0,38281.0,0.38831252]
[1646612256136,0.001,38285.0,38281.0,0.68831252]
[1646612256437,0.001,38285.0,38284.0,0.414227]
[1646612256636,0.78322,38290.0,38285.0,1.02743347]
[1646612256835,0.78322,38290.0,38287.0,0.28699236]
[1646612257036,0.78322,38290.0,38288.0,0.688177]
[1646612257241,0.78322,38290.0,38289.0,0.3]
[1646612257485,0.78322,38290.0,38289.0,0.688177]
[1646612258283,0.78322,38290.0,38289.0,0.74880788]